Workbook

Sheet  (hidden)

Sheet Introducción
D1: INSTRUCTIVO ANÁLISIS DE CONVENIENCIA RÉGIMEN SIMPLE
D6: 1. OBJETIVO
D8: Analizar la conveniencia en la aplicación del régimen simple de tributación para las personas naturales y jurídicas comparando el valor estimado a pagar del impuesto de renta e ICA contra el simple.
D12: 2. PROCEDIMIENTO
D14: 2.1 ANÁLISIS PERSONA JURÍDICA | F14: Ver "PJ régimen simple"
D16: Diligencie las siguiente casillas en la hoja PJ régimen simple:
D18: UVT: | E18: Determine el valor del UVT del periodo a analizar
D20: Actividades: | E20: Elija la actividad en la cual usted pertenece, recuerde que para determinar la actividad economica se debe tener en cuenta la actividad CIIU de la camara de comercio. Las mismas se encuentran en el anexo del libro de régimen simple.
D22: Ingresos totales devengados: | E22: Determine los ingresos gravados promedio del año. Para esto puede tomar los ingresos del año anterior (+) mas las variaciones que espere tener en el año en curso.
D24: Promedio de los costos y deducciones: | E24: Indique porcentualmente (%) los costos y deducciones que en promedio se puede imputar en las declaraciones.
D26: Patrimonio líquido año anterior: | E26: Determine el patrimonio del año anterior y al depuración del Art. 189 del estatuto tributario-
D28: Tarifa industria y comercio: | E28: Indique la tarifa de industria y comercio sin por mil (6,99 por mil es igual a 6,99)
D30: Avisos y tableros: | E30: Indique si la entidad debe pagar avisos y tableros.
D32: Tasa bomberil: | E32: Si la entidad debe pagar tasa bomberil, coloco que valor estimado a pagar
D35: Adicionalmente se debe determinar diligenciar las siguientes dos hojas referentes a los descuentos tributarios del Art. 903 y 912 del estatuto tributario:
D37: PJ Anexo pensión: | E37: Indique el total de los empleados y el ingreso base de cotización del año
D39: PJ Anexo pagos electronicos: | E39: Estime el total de los pagos electronicos del año clasificado asi: * Tarjetas débito * Tarjetas Crédito * Tranferencia electronica * Otros mecanismos de pagos electrónicos
D41: La plantilla le permitirá comparar el valor promedio a pagar del impuesto de renta mas ICA y el régimen simple de una persona jurídica.
D44: 2.2 ANÁLISIS PERSONA NATURAL | F44: Ver "PN régimen simple"
D46: Diligencie las siguiente casillas en la hoja PJ régimen simple:
D48: UVT: | E48: Determine el valor del UVT del periodo a analizar
D50: Actividades: | E50: Elija la actividad en la cual usted pertenece, recuerde que para determinar la actividad economica se debe tener en cuenta la actividad CIIU de la camara de comercio. Las mismas se encuentran en el anexo del libro de régimen simple.
D52: Cedula general: | E52: Indique el total de ingresos, los INCRNGO, Costos, deducciones y rentas exentas promedio del contribuyente de la cedula general.
D54: Cedula de pensión: | E54: Indique el total de ingresos, los INCRNGO y rentas exentas promedio del contribuyente de la cedula de pensión.
D56: Cedula de dividendos: | E56: Indique el total de ingresos, los INCRNGO del contribuyente de la cedula de dividendos.
D58: Tarifa industria y comercio: | E58: Indique la tarifa de industria y comercio sin por mil (6,99 por mil es igual a 6,99)
D60: Avisos y tableros: | E60: Indique si la entidad debe pagar avisos y tableros.
D62: Tasa bomberil: | E62: Si la entidad debe pagar tasa bomberil, coloco que valor estimado a pagar
D65: Adicionalmente se debe determinar diligenciar las siguientes dos hojas referentes a los descuentos tributarios del Art. 903 y 912 del estatuto tributario:
D67: PJ Anexo pensión: | E67: Indique el total de los empleados y el ingreso base de cotización del año
D69: PJ Anexo pagos electronicos: | E69: Estime el total de los pagos electronicos del año clasificado asi: * Tarjetas débito * Tarjetas Crédito * Tranferencia electronica * Otros mecanismos de pagos electrónicos
D71: La plantilla le permitirá comparar el valor promedio a pagar del impuesto de renta mas ICA y el régimen simple de una persona natural

Sheet PJ régimen simple
D1: ANÁLISIS DE CONVENIENCIA PERSONA JURÍDICA
E4: UVT 2023 | F4: 42412
E6: ACTIVIDADES | F6: Educación y actividades de atención de la salud humana y de asistencia social
D9: Impuesto de renta | E9: Ingresos totales devengados: | F9: 4000000000
E10: Promedio de los costos y deducciones: | F10: 0.85
E11: Deducciones | F11: =+F9*F10 -> 3400000000
E12: Renta liquida ordinaria | F12: =(F9-F11) -> 600000000
E13: Impuesto sobre la renta liquida gravable ( Renglón 79) | F13: =F12*35% -> 210000000
E14: Descuentos tributarios (Renglón 84)
E15: Total impuesto a cargo | F15: =F13-F14 -> 210000000
D18: Impuesto de ICA | E18: Tarifa industria y comercio | F18: 11.04
E19: Avisos y tableros | F19: Si
E20: Tasa bomberil | F20: 0
E21: IMPUESTOS DE INDUSTRIA Y COMERCIO | F21: =(F9*F18/1000)+(IF(F19="Si",(F9*F18/1000)*15%,0))+F20 -> 50784000
D22: TOTAL IMPUESTOS RENTA (+) ICA | F22: =+F21+F13 -> 260784000
D24: Regimen simple | E24: TOTAL IMPUESTO SIMPLE Primario | F24: =+IF(AND('PJ régimen simple'!F6=Hoja2!$D$16,'PJ régimen simple'!F9>Hoja2!G16,'PJ régimen simple'!F9<Hoja2!H16),'PJ régimen simple'!F9*Hoja2!I16,IF(AND('PJ régimen simple'!F6=Hoja2!$D$17,'PJ régimen simple'!F9>Hoja2!G17,'PJ régimen simple'!F9<Hoja2!H17),'PJ régimen simple'!F9*Hoja2!I17,IF(AND('PJ régimen simple'!F6=Hoja2!$D$16,'PJ régimen simple'!F9>Hoja2!G18,'PJ régimen simple'!F9<Hoja2!H18),'PJ régimen simple'!F9*Hoja2!I18,+IF(AND('PJ régimen simple'!F6=Hoja2!$D$16,'PJ régimen simple'!F9>Hoja2!G19,'PJ régimen simple'!F9<Hoja2!H19),'PJ régimen simple'!F9*Hoja2!I19,IF(AND('PJ régimen simple'!F6=Hoja2!$B$7,'PJ régimen simple'!F9>Hoja2!G16,'PJ régimen simple'!F9<Hoja2!H16),'PJ régimen simple'!F9*Hoja2!I22,IF(AND('PJ régimen simple'!F6=Hoja2!$B$7,'PJ régimen simple'!F9>Hoja2!G17,'PJ régimen simple'!F9<Hoja2!H17),'PJ régimen simple'!F9*Hoja2!I23,IF(AND('PJ régimen simple'!F6=Hoja2!$B$7,'PJ régimen simple'!F9>Hoja2!G18,'PJ régimen simple'!F9<Hoja2!H18),'PJ régimen simple'!F9*Hoja2!I24,+IF(AND('PJ régimen simple'!F6=Hoja2!$B$7,'PJ régimen simple'!F9>Hoja2!G19,'PJ régimen simple'!F9<Hoja2!H19),'PJ régimen simple'!F9*Hoja2!I25,IF(AND('PJ régimen simple'!F6=Hoja2!$B$8,'PJ régimen simple'!F9>Hoja2!G16,'PJ régimen simple'!F9<Hoja2!H16),'PJ régimen simple'!F9*Hoja2!I28,IF(AND('PJ régimen simple'!F6=Hoja2!$B$8,'PJ régimen simple'!F9>Hoja2!G17,'PJ régimen simple'!F9<Hoja2!H17),'PJ régimen simple'!F9*Hoja2!I29,IF(AND('PJ régimen simple'!F6=Hoja2!$B$8,'PJ régimen simple'!F9>Hoja2!G18,'PJ régimen simple'!F9<Hoja2!H18),'PJ régimen simple'!F9*Hoja2!I30,+IF(AND('PJ régimen simple'!F6=Hoja2!$B$8,'PJ régimen simple'!F9>Hoja2!G19,'PJ régimen simple'!F9<Hoja2!H19),'PJ régimen simple'!F9*Hoja2!I31,IF(AND('PJ régimen simple'!F6=Hoja2!$B$9,'PJ régimen simple'!F9>Hoja2!G16,'PJ régimen simple'!F9<Hoja2!H16),'PJ régimen simple'!F9*Hoja2!I34,IF(AND('PJ régimen simple'!F6=Hoja2!$B$9,'PJ régimen simple'!F9>Hoja2!G17,'PJ régimen simple'!F9<Hoja2!H17),'PJ régimen simple'!F9*Hoja2!I35,IF(AND('PJ régimen simple'!F6=Hoja2!$B$9,'PJ régimen simple'!F9>Hoja2!G18,'PJ régimen simple'!F9<Hoja2!H18),'PJ régimen simple'!F9*Hoja2!I36,+IF(AND('PJ régimen simple'!F6=Hoja2!$B$9,'PJ régimen simple'!F9>Hoja2!G19,'PJ régimen simple'!F9<Hoja2!H19),'PJ régimen simple'!F9*Hoja2!I37,+IF(AND('PJ régimen simple'!F6=Hoja2!$B$10,'PJ régimen simple'!F9>Hoja2!G40,'PJ régimen simple'!F9<Hoja2!H40),'PJ régimen simple'!F9*Hoja2!I40,+IF(AND('PJ régimen simple'!F6=Hoja2!$B$10,'PJ régimen simple'!F9>Hoja2!G41,'PJ régimen simple'!F9<Hoja2!H41),'PJ régimen simple'!F9*Hoja2!I41,IF('PJ régimen simple'!F6=Hoja2!$B$11,'PJ régimen simple'!F9*1.62%," "))))))))))))))))))) -> 236000000
E25: Pago minímo Imuesto simple | F25: =IF('PJ régimen simple'!F24>F21,F21,'PJ régimen simple'!F24) -> 50784000
E26: (-) Descuento por pensión a cargo del empleador | F26: =IF('PJ Anexo pensión'!E51>'PJ régimen simple'!F24-F25,'PJ régimen simple'!F24-F25,'PJ Anexo pensión'!E51) -> 0
E27: Excedente de aportes al sistema general de pensiones | F27: =IF('PJ Anexo pensión'!E51>'PJ régimen simple'!F24,'PJ Anexo pensión'!E51-'PJ régimen simple'!F25,'PJ Anexo pensión'!E51-'PJ régimen simple'!F26) -> 0
E28: (-) Descuento recaudos al sistema eléctronico. | F28: =IF('PJ Anexo pagos elec. y GMF'!D9>'PJ régimen simple'!F24-F25-F26,'PJ régimen simple'!F24-F25-F26,'PJ Anexo pagos elec. y GMF'!D9) -> 0
E29: Excedente de recaudos al sistema eléctronico | F29: =IF(F28='PJ Anexo pagos elec. y GMF'!D9,0,'PJ Anexo pagos elec. y GMF'!D9-'PJ régimen simple'!F28) -> 0
E30: (-) Descuento GMF | F30: =+'PJ Anexo pagos elec. y GMF'!D13 -> 0
E31: TOTAL IMPUESTO SIMPLE FINAL | F31: ='PJ régimen simple'!F24-F26-F28 -> 236000000

Sheet Hoja2 (hidden)
B6: Tiendas pequeñas, mini-mercados, micromercados y peluquerias
B7: Actividades comerciales al por mayor y detal | D7: =+IF(AND('PN régimen simple'!G6=Hoja2!$B$10,'PN régimen simple'!G34>Hoja2!G40,'PN régimen simple'!G34<Hoja2!H40),'PN régimen simple'!G34*Hoja2!I40,+IF(AND('PN régimen simple'!G6=Hoja2!$B$10,'PN régimen simple'!G34>Hoja2!G41,'PN régimen simple'!G34<Hoja2!H41),'PN régimen simple'!G34*Hoja2!I41," ")) -> 
B8: Actividades de expendio de comidas y bebidas, y actividades de transporte
B9: Educación y actividades de atención de la salud humana y de asistencia social
B10: Servicios profesionales, de consultoría y científicos | E10: =+IF(AND('PJ régimen simple'!F6=Hoja2!$B$9,'PJ régimen simple'!F9>Hoja2!G18,'PJ régimen simple'!F9<Hoja2!H18),'PJ régimen simple'!F9*Hoja2!I36,+IF(AND('PJ régimen simple'!F6=Hoja2!$B$9,'PJ régimen simple'!F9>Hoja2!G19,'PJ régimen simple'!F9<Hoja2!H19),'PJ régimen simple'!F9*Hoja2!I37," ")) -> 236000000
B11: Actividades económicas CIIU 4665, 3830 y 3811
B13: Si
B14: No | D14: Actividades | E14: Ingresos brutos anuales | G14: Ingresos brutos anuales | I14: Tarifa simple consolidada
E15: Igual o superior | F15: Inferior | G15: Igual o superior | H15: Inferior
D16: Tiendas pequeñas, mini-mercados, micromercados y peluquerias | E16: 0 | F16: 6000 | G16: =+E16*'[1]Análisis de casos'!$E$4 -> 0 | H16: =+F16*'[1]Análisis de casos'!$E$4 -> 254472000 | I16: 0.012
D17: Tiendas pequeñas, mini-mercados, micromercados y peluquerias | E17: 6000 | F17: 15000 | G17: =+E17*'[1]Análisis de casos'!$E$4 -> 254472000 | H17: =+F17*'[1]Análisis de casos'!$E$4 -> 636180000 | I17: 0.028
D18: Tiendas pequeñas, mini-mercados, micromercados y peluquerias | E18: 15000 | F18: 30000 | G18: =+E18*'[1]Análisis de casos'!$E$4 -> 636180000 | H18: =+F18*'[1]Análisis de casos'!$E$4 -> 1272360000 | I18: 0.044 | J18: =+'PJ régimen simple'!F9*Hoja2!I17 -> 112000000
D19: Tiendas pequeñas, mini-mercados, micromercados y peluquerias | E19: 30000 | F19: 100000 | G19: =+E19*'[1]Análisis de casos'!$E$4 -> 1272360000 | H19: =+F19*'[1]Análisis de casos'!$E$4 -> 4241200000 | I19: 0.056 | J19: =+'PJ régimen simple'!F9*Hoja2!I19 -> 224000000
D20: Actividades | E20: Ingresos brutos anuales | G20: Ingresos brutos anuales | I20: Tarifa simple consolidada
E21: Igual o superior | F21: Inferior | G21: Igual o superior | H21: Inferior
D22: =+$B$7 -> Actividades comerciales al por mayor y detal | E22: 0 | F22: 6000 | G22: =+E22*'[1]Análisis de casos'!$E$4 -> 0 | H22: =+F22*'[1]Análisis de casos'!$E$4 -> 254472000 | I22: 0.016 | L22: Ingresos brutos anuales | N22: Ingresos brutos anuales | P22: Tarifa marginal | Q22: CALCULO | R22: IMPUESTO
D23: =+$B$7 -> Actividades comerciales al por mayor y detal | E23: 6000 | F23: 15000 | G23: =+E23*'[1]Análisis de casos'!$E$4 -> 254472000 | H23: =+F23*'[1]Análisis de casos'!$E$4 -> 636180000 | I23: 0.02 | L23: Igual o superior | M23: Igual o superior | N23: Inferior | W23: 100000 | X23: =+W23*'PJ régimen simple'!F4 -> 4241200000
D24: Actividades comerciales al por mayor y detal | E24: 15000 | F24: 30000 | G24: =+E24*'[1]Análisis de casos'!$E$4 -> 636180000 | H24: =+F24*'[1]Análisis de casos'!$E$4 -> 1272360000 | I24: 0.035 | L24: 0 | M24: 1090 | N24: ='PN régimen simple'!$G$4*L24 -> 0 | O24: ='PN régimen simple'!$G$4*M24 -> 46229080 | P24: 0 | Q24: 0 | R24: 0
D25: Actividades comerciales al por mayor y detal | E25: 30000 | F25: 100000 | G25: =+E25*'[1]Análisis de casos'!$E$4 -> 1272360000 | H25: =+F25*'[1]Análisis de casos'!$E$4 -> 4241200000 | I25: 0.045 | L25: =M24+1 -> 1091 | M25: 1700 | N25: ='PN régimen simple'!$G$4*L25 -> 46271492 | O25: ='PN régimen simple'!$G$4*M25 -> 72100400 | P25: 0.19 | Q25: (Base gravable en UVT Menos 1090 UVT) *19% | R25: =((('PN régimen simple'!$G$13/'PN régimen simple'!G4)-1090)*19%)*'PN régimen simple'!G4 -> 697576444.3
D26: Actividades | E26: Ingresos brutos anuales | G26: Ingresos brutos anuales | I26: Tarifa simple consolidada | L26: 1701 | M26: 4100 | N26: ='PN régimen simple'!$G$4*L26 -> 72142812 | O26: ='PN régimen simple'!$G$4*M26 -> 173889200 | P26: 0.28 | Q26: (Base gravable en UVT Menos 1700 UVT) *28% + 116 UVT | R26: =(((('PN régimen simple'!$G$13/'PN régimen simple'!$G$4)-1700)*28%)+116)*'PN régimen simple'!$G$4 -> 1025683214
E27: Igual o superior | F27: Inferior | G27: Igual o superior | H27: Inferior | L27: 4101 | M27: 8670 | N27: ='PN régimen simple'!$G$4*L27 -> 173931612 | O27: ='PN régimen simple'!$G$4*M27 -> 367712040 | P27: 0.33 | Q27: (Base gravable en UVT Menos 4100 UVT) *33% + 788 UVT | R27: =(((('PN régimen simple'!$G$13/'PN régimen simple'!$G$4)-4100)*33%)+788)*'PN régimen simple'!$G$4 -> 1202872957
D28: =+$B$8 -> Actividades de expendio de comidas y bebidas, y actividades de transporte | E28: 0 | F28: 6000 | G28: =+E28*'[1]Análisis de casos'!$E$4 -> 0 | H28: =+F28*'[1]Análisis de casos'!$E$4 -> 254472000 | I28: 0.031 | L28: 8671 | M28: 18970 | N28: ='PN régimen simple'!$G$4*L28 -> 367754452 | O28: ='PN régimen simple'!$G$4*M28 -> 804555640 | P28: 0.35 | Q28: (Base gravable en UVT Menos 8670 UVT) *35% + 2296 UVT | R28: =(((('PN régimen simple'!$G$13/'PN régimen simple'!$G$4)-8670)*35%)+2296)*'PN régimen simple'!$G$4 -> 1269868156
D29: =+$B$8 -> Actividades de expendio de comidas y bebidas, y actividades de transporte | E29: 6000 | F29: 15000 | G29: =+E29*'[1]Análisis de casos'!$E$4 -> 254472000 | H29: =+F29*'[1]Análisis de casos'!$E$4 -> 636180000 | I29: 0.034 | L29: 18971 | M29: 31000 | N29: ='PN régimen simple'!$G$4*L29 -> 804598052 | O29: ='PN régimen simple'!$G$4*M29 -> 1314772000 | P29: 0.37 | Q29: (Base gravable en UVT Menos 18970 UVT) *37% + 5901 UVT | R29: =(((('PN régimen simple'!$G$13/'PN régimen simple'!$G$4)-18970)*37%)+5901)*'PN régimen simple'!$G$4 -> 1328130724
D30: Actividades de expendio de comidas y bebidas, y actividades de transporte | E30: 15000 | F30: 30000 | G30: =+E30*'[1]Análisis de casos'!$E$4 -> 636180000 | H30: =+F30*'[1]Análisis de casos'!$E$4 -> 1272360000 | I30: 0.04 | L30: 31001 | M30: En adelante | N30: ='PN régimen simple'!$G$4*L30 -> 1314814412 | O30: 9999999999 | P30: 0.39 | Q30: (Base gravable en UVT Menos 31000 UVT) *39% + 10352 UVT | R30: =(((('PN régimen simple'!$G$13/'PN régimen simple'!$G$4)-31000)*39%)+10352)*'PN régimen simple'!$G$4 -> 1376184724
D31: Actividades de expendio de comidas y bebidas, y actividades de transporte | E31: 30000 | F31: 100000 | G31: =+E31*'[1]Análisis de casos'!$E$4 -> 1272360000 | H31: =+F31*'[1]Análisis de casos'!$E$4 -> 4241200000 | I31: 0.045
D32: Actividades | E32: Ingresos brutos anuales | G32: Ingresos brutos anuales | I32: Tarifa simple consolidada
E33: Igual o superior | F33: Inferior | G33: Igual o superior | H33: Inferior
D34: =+$B$9 -> Educación y actividades de atención de la salud humana y de asistencia social | E34: 0 | F34: 6000 | G34: =+E34*'[1]Análisis de casos'!$E$4 -> 0 | H34: =+F34*'[1]Análisis de casos'!$E$4 -> 254472000 | I34: 0.037
D35: =+$B$9 -> Educación y actividades de atención de la salud humana y de asistencia social | E35: 6000 | F35: 15000 | G35: =+E35*'[1]Análisis de casos'!$E$4 -> 254472000 | H35: =+F35*'[1]Análisis de casos'!$E$4 -> 636180000 | I35: 0.05
D36: Educación y actividades de atención de la salud humana y de asistencia social | E36: 15000 | F36: 30000 | G36: =+E36*'[1]Análisis de casos'!$E$4 -> 636180000 | H36: =+F36*'[1]Análisis de casos'!$E$4 -> 1272360000 | I36: 0.054 | O36: ='PN régimen simple'!G13+'PN régimen simple'!G17 -> 3717684050
D37: Educación y actividades de atención de la salud humana y de asistencia social | E37: 30000 | F37: 100000 | G37: =+E37*'[1]Análisis de casos'!$E$4 -> 1272360000 | H37: =+F37*'[1]Análisis de casos'!$E$4 -> 4241200000 | I37: 0.059 | P37: =+'PN régimen simple'!G13/'PN régimen simple'!G4 -> 87656.41917 | Q37: =+(((P37-8670)*35%)+2296)*'PN régimen simple'!G4 -> 1269868156
D38: Actividades | E38: Ingresos brutos anuales | G38: Ingresos brutos anuales | I38: Tarifa simple consolidada
E39: Igual o superior | F39: Inferior | G39: Igual o superior | H39: Inferior
D40: =+$B$10 -> Servicios profesionales, de consultoría y científicos | E40: 0 | F40: 6000 | G40: =+E40*'[1]Análisis de casos'!$E$4 -> 0 | H40: =+F40*'[1]Análisis de casos'!$E$4 -> 254472000 | I40: 0.073
D41: =+D40 -> Servicios profesionales, de consultoría y científicos | E41: 6000 | F41: 12000 | G41: =+E41*'[1]Análisis de casos'!$E$4 -> 254472000 | H41: =+F41*'[1]Análisis de casos'!$E$4 -> 508944000 | I41: 0.083 | N41: TOTAL IMPUESTOS RENTA (+) ICA | O41: ='PN régimen simple'!G29 -> 1428341009
N42: IMPUESTO SIMPLE | O42: =+'PN régimen simple'!G42 -> 66799210.41
N43: (-) Descuento por pensión a cargo del empleador | O43: ='PN régimen simple'!G37 -> 0
N44: (-) Descuento recaudos al sistema eléctronico. | O44: ='PN régimen simple'!G39 -> 0
D45: =+IF('PJ régimen simple'!F6=Hoja2!$B$11,'PJ régimen simple'!F9*1.62%,0) -> 0 | N45: (-) Descuento GMF | O45: =+'PN régimen simple'!$G$41 -> 0
D46: =+#REF!-1700 -> 
D47: =+D46*28% -> 
D48: =+D47+116 -> 
D49: =+D48*#REF! -> 
I60: ='PJ régimen simple'!$D$22 -> TOTAL IMPUESTOS RENTA (+) ICA | J60: ='PJ régimen simple'!$F$22 -> 260784000
I61: ='PJ régimen simple'!$E$31 -> TOTAL IMPUESTO SIMPLE FINAL | J61: ='PJ régimen simple'!$F$31 -> 236000000
E64: PJ | I64: ='PJ régimen simple'!E26 -> (-) Descuento por pensión a cargo del empleador | J64: ='PJ régimen simple'!F26 -> 0
E65: GMF | I65: ='PJ régimen simple'!E28 -> (-) Descuento recaudos al sistema eléctronico. | J65: ='PJ régimen simple'!F28 -> 0
E66: TOTAL | F66: =+SUM('PJ Anexo pagos elec. y GMF'!C13:C15) -> 0 | H66: =+F66*0.004% -> 0 | I66: (-) Descuento GMF | J66: =+'PJ régimen simple'!$F$30 -> 0
E67: LIMITE | F67: =+'PJ régimen simple'!$F$9*0.004% -> 160000
E68: MAXIMO | F68: =+MIN(F66,F67) -> 0
J69: =+'PJ régimen simple'!F4 -> 42412
E70: PN | J70: 1000
E71: GMF | J71: =+J69*J70 -> 42412000
E72: TOTAL | F72: =+SUM('PN Anexo pagos elec. y GMF'!C13:C15) -> 0
E73: LIMITE | F73: ='PN régimen simple'!$G$34*0.004% -> 164936.322
E74: MAXIMO | F74: =+MIN(F72,F73) -> 0

Sheet PJ Anexo pensión
B1: Nombre y apellido | C1: Cedula | D1: IBC | E1: Aporte a cargo del empleador
E2: =D2*12% -> 0
E3: =D3*12% -> 0
E4: 0
E5: 0
E6: 0
E7: 0
E8: 0
E9: 0
E10: 0
E11: 0
E12: 0
E13: 0
E14: 0
E15: 0
E16: 0
E17: 0
E18: 0
E19: 0
E20: 0
E21: 0
E22: 0
E23: 0
E24: 0
E25: 0
E26: 0
E27: 0
E28: 0
E29: 0
E30: 0
E31: 0
E32: 0
E33: 0
E34: 0
E35: 0
E36: 0
E37: 0
E38: 0
E39: 0
E40: 0
E41: 0
E42: 0
E43: 0
E44: 0
E45: 0
E46: 0
E47: 0
D51: TOTAL | E51: =SUM(E2:E47) -> 0

Sheet PJ Anexo pagos elec. y GMF
B1: Pagos electrónicos
B2: Pagos electrónicos | C2: Monto | D2: Tarifa
B3: Tarjetas débito | D3: =C3*0.5% -> 0
B4: Tarjetas Crédito | D4: =C4*0.5% -> 0
B5: Tranferencia electronica | D5: =C5*0.5% -> 0
B6: Otros mecanismos de pagos electrónicos | D6: =C6*0.5% -> 0
C9: Total | D9: =SUM(D3:D6) -> 0
B11: GMF
B12: BANCOS | C12: MONTO | D12: LIMITE
B13: Banco ABC | D13: =+Hoja2!$F$68 -> 0
B14: BANCO XYZ
B15: BANCO YYY

Sheet PN régimen simple
C1: ANÁLISIS DE CONVENIENCIA PERSONA NATURAL
E4: UVT 2023 | G4: =+'PJ régimen simple'!F4 -> 42412
E6: ACTIVIDADES | G6: Actividades económicas CIIU 4665, 3830 y 3811
D9: Impuesto de renta | E9: Cedula general | F9: Ingresos gravados | G9: 4108088050
F10: (-) Ingreso no constitutivo de renta | G10: 13680000
F11: (-) Costos y deducciones | G11: 376724000
F12: (-) Renta exentas
F13: (=) Renta liquida | G13: =G9-G10-G11-G12 -> 3717684050
E14: Cedula de pensión | F14: Ingresos gravados | G14: 29000000
F15: (-) Ingreso no constitutivo de renta | G15: 0
F16: (-) Rentas exentas | G16: =+G14 -> 29000000
F17: (=) Renta liquida | G17: =+G14-G15-G16 -> 0
E18: Dividendos gravados | F18: Ingresos gravados
F19: (-) Ingreso no constitutivo de renta | G19: 0
F20: (=) Renta liquida | G20: =G18-G19 -> 0
E21: Impuesto de renta cedula general (Dividendos no gravados) + pensión | G21: =IF(AND(Hoja2!O36<Hoja2!O24,Hoja2!O36>Hoja2!N24),Hoja2!R24,IF(AND(Hoja2!O36<Hoja2!O25,Hoja2!O36>Hoja2!N25),Hoja2!R25,IF(AND(Hoja2!O36<Hoja2!O26,Hoja2!O36>Hoja2!N26),Hoja2!R26,IF(AND(Hoja2!O36<Hoja2!O27,Hoja2!O36>Hoja2!N27),Hoja2!R27,IF(AND(Hoja2!O36<Hoja2!O28,Hoja2!O36>Hoja2!N28),Hoja2!R28,IF(AND(Hoja2!O36<Hoja2!O29,Hoja2!O36>Hoja2!N29),Hoja2!R29,IF(AND(Hoja2!O36<Hoja2!O30,Hoja2!O36>Hoja2!N30),Hoja2!R30,0))))))) -> 1376184724
E22: Impuesto de renta cedula de dividendos | G22: =+G20*35% -> 0
E23: TOTAL IMPUESTO DE RENTA | G23: =SUM(G21:G22) -> 1376184724
D25: Impuesto de ICA | E25: Tarifa industria y comercio | G25: 11.04
E26: Avisos y tableros | G26: Si
E27: Tasa bomberil
E28: IMPUESTOS DE INDUSTRIA Y COMERCIO | G28: =(G9*G25/1000)+(IF(G26="Si",(G9*G25/1000)*15%,0))+G27 -> 52156285.88
D29: TOTAL IMPUESTOS RENTA (+) ICA | G29: =G23+G28 -> 1428341009
F31: `
D32: Impuesto regimen simple | E32: Ingreso regimen simple | G32: =G9+G14+G18 -> 4137088050
E33: (-) Ingreso no constitutivo de renta | G33: =G10+G15+G19 -> 13680000
E34: Base gravable regimen simple de tributación | G34: =G32-G33 -> 4123408050
E35: Impuesto simple | G35: =+IF(AND('PN régimen simple'!G6=Hoja2!$D$16,'PN régimen simple'!G34>Hoja2!G16,'PN régimen simple'!G34<Hoja2!H16),'PN régimen simple'!G34*Hoja2!I16,IF(AND('PN régimen simple'!G6=Hoja2!$D$17,'PN régimen simple'!G34>Hoja2!G17,'PN régimen simple'!G34<Hoja2!H17),'PN régimen simple'!G34*Hoja2!I17,IF(AND('PN régimen simple'!G6=Hoja2!$D$16,'PN régimen simple'!G34>Hoja2!G18,'PN régimen simple'!G34<Hoja2!H18),'PN régimen simple'!G34*Hoja2!I18,+IF(AND('PN régimen simple'!G6=Hoja2!$D$16,'PN régimen simple'!G34>Hoja2!G19,'PN régimen simple'!G34<Hoja2!H19),'PN régimen simple'!G34*Hoja2!I19,IF(AND('PN régimen simple'!G6=Hoja2!$B$7,'PN régimen simple'!G34>Hoja2!G16,'PN régimen simple'!G34<Hoja2!H16),'PN régimen simple'!G34*Hoja2!I22,IF(AND('PN régimen simple'!G6=Hoja2!$B$7,'PN régimen simple'!G34>Hoja2!G17,'PN régimen simple'!G34<Hoja2!H17),'PN régimen simple'!G34*Hoja2!I23,IF(AND('PN régimen simple'!G6=Hoja2!$B$7,'PN régimen simple'!G34>Hoja2!G18,'PN régimen simple'!G34<Hoja2!H18),'PN régimen simple'!G34*Hoja2!I24,+IF(AND('PN régimen simple'!G6=Hoja2!$B$7,'PN régimen simple'!G34>Hoja2!G19,'PN régimen simple'!G34<Hoja2!H19),'PN régimen simple'!G34*Hoja2!I25,IF(AND('PN régimen simple'!G6=Hoja2!$B$8,'PN régimen simple'!G34>Hoja2!G16,'PN régimen simple'!G34<Hoja2!H16),'PN régimen simple'!G34*Hoja2!I28,IF(AND('PN régimen simple'!G6=Hoja2!$B$8,'PN régimen simple'!G34>Hoja2!G17,'PN régimen simple'!G34<Hoja2!H17),'PN régimen simple'!G34*Hoja2!I29,IF(AND('PN régimen simple'!G6=Hoja2!$B$8,'PN régimen simple'!G34>Hoja2!G18,'PN régimen simple'!G34<Hoja2!H18),'PN régimen simple'!G34*Hoja2!I30,+IF(AND('PN régimen simple'!G6=Hoja2!$B$8,'PN régimen simple'!G34>Hoja2!G19,'PN régimen simple'!G34<Hoja2!H19),'PN régimen simple'!G34*Hoja2!I31,IF(AND('PN régimen simple'!G6=Hoja2!$B$9,'PN régimen simple'!G34>Hoja2!G16,'PN régimen simple'!G34<Hoja2!H16),'PN régimen simple'!G34*Hoja2!I34,IF(AND('PN régimen simple'!G6=Hoja2!$B$9,'PN régimen simple'!G34>Hoja2!G17,'PN régimen simple'!G34<Hoja2!H17),'PN régimen simple'!G34*Hoja2!I35,IF(AND('PN régimen simple'!G6=Hoja2!$B$9,'PN régimen simple'!G34>Hoja2!G18,'PN régimen simple'!G34<Hoja2!H18),'PN régimen simple'!G34*Hoja2!I36,+IF(AND('PN régimen simple'!G6=Hoja2!$B$9,'PN régimen simple'!G34>Hoja2!G19,'PN régimen simple'!G34<Hoja2!H19),'PN régimen simple'!G34*Hoja2!I37,IF(AND('PN régimen simple'!G6=Hoja2!$B$10,'PN régimen simple'!G34>Hoja2!G40,'PN régimen simple'!G34<Hoja2!H40),'PN régimen simple'!G34*Hoja2!I40,+IF(AND('PN régimen simple'!G6=Hoja2!$B$10,'PN régimen simple'!G34>Hoja2!G41,'PN régimen simple'!G34<Hoja2!H41),'PN régimen simple'!G34*Hoja2!I41,IF(G6=Hoja2!$B$11,G34*1.62%," "))))))))))))))))))) -> 66799210.41
E36: Pago minímo Imuesto simple | G36: =G28 -> 52156285.88
E37: (-) Descuento por pensión a cargo del empleador | G37: =IF('PN Anexo pensión'!E52>('PN régimen simple'!G35-'PN régimen simple'!G36),'PN régimen simple'!G35-'PN régimen simple'!G36,'PN Anexo pensión'!E52) -> 0
E38: Excedente de aportes al sistema general de pensiones | G38: =+IF(G37='PN Anexo pensión'!E52,'PN Anexo pensión'!E52-'PN régimen simple'!G37,'PN Anexo pensión'!E52-'PN régimen simple'!G37) -> 0
E39: (-) Descuento recaudos al sistema eléctronico. | G39: =IF('PN Anexo pagos elec. y GMF'!D8>'PN régimen simple'!G35-G36-'PN régimen simple'!G37,'PN régimen simple'!G35-G36-'PN régimen simple'!G37,'PN Anexo pagos elec. y GMF'!D8) -> 0
E40: Excedente de recaudos al sistema eléctronico | G40: =IF(G39='PN Anexo pagos elec. y GMF'!D8,0,'PN Anexo pagos elec. y GMF'!D8-'PN régimen simple'!G39) -> 0
E41: (-) Descuento GMF | G41: =IF('PN Anexo pagos elec. y GMF'!D13>'PN régimen simple'!G35-G36-'PN régimen simple'!G37-G39,'PN régimen simple'!G35-G36-'PN régimen simple'!G37-G39,'PN Anexo pagos elec. y GMF'!D13) -> 0
E42: TOTAL IMPUESTO SIMPLE FINAL | G42: ='PN régimen simple'!G35-'PN régimen simple'!G37-G39 -> 66799210.41

Sheet PN Anexo pensión
B1: Nombre y apellido | C1: Cedula | D1: IBC | E1: Aporte a cargo del empleador
E2: =D2*12% -> 0
E3: 0
E4: 0
E5: 0
E6: 0
E7: 0
E8: 0
E9: 0
E10: 0
E11: 0
E12: 0
E13: 0
E14: 0
E15: 0
E16: 0
E17: 0
E18: 0
E19: 0
E20: 0
E21: 0
E22: 0
E23: 0
E24: 0
E25: 0
E26: 0
E27: 0
E28: 0
E29: 0
E30: 0
E31: 0
E32: 0
E33: 0
E34: 0
E35: 0
E36: 0
E37: 0
E38: 0
E39: 0
E40: 0
E41: 0
E42: 0
E43: 0
E44: 0
E45: 0
E46: 0
E47: 0
E48: 0
D52: =SUM(D2:D48) -> 0 | E52: =SUM(E2:E48) -> 0 | F52: =SUM(F2:F48) -> 0

Sheet PN Anexo pagos elec. y GMF
B1: Pagos electrónicos | C1: Monto | D1: Tarifa
B2: Tarjetas débito | D2: =C2*0.5% -> 0
B3: Tarjetas Crédito | D3: =C3*0.5% -> 0
B4: Tranferencia electronica | D4: =C4*0.5% -> 0
B5: Otros mecanismos de pagos electrónicos | D5: =C5*0.5% -> 0
C8: Total | D8: =SUM(D2:D5) -> 0
B11: GMF
B12: BANCOS | C12: MONTO | D12: LIMITE
B13: Banco ABC | D13: =+Hoja2!F74 -> 0
B14: BANCO XYZ
B15: BANCO YYY
